fUST/lending_fUST_20250815
["ID","MTS","AMOUNT","RATE_DAILY","PERIOD"]
[379216877,1755192632372,-512.0,0.00016708,2]
[379216879,1755192632383,-460.0,0.00016708,2]
[379216881,1755192632394,-460.0,0.00016708,2]
[379216884,1755192632406,-460.0,0.00016708,2]
[379216886,1755192632417,-1192.05,0.00016708,2]
[379216888,1755192632431,-460.0,0.00016708,2]
[379216890,1755192632441,-596.53,0.00016708,2]
[379216892,1755192632452,-460.0,0.00016708,2]
[379216895,1755192632464,-460.0,0.00016708,2]
[379216897,1755192632474,-500.0,0.00016708,2]
[379216899,1755192632484,-500.0,0.00016708,2]
[379216901,1755192632495,-500.0,0.00016708,2]
[379216903,1755192632505,-500.0,0.00016708,2]
[379216905,1755192632517,-500.0,0.00016708,2]
[379216907,1755192632528,-163.11482928,0.00016708,2]
[379216909,1755192632538,-500.0,0.00016708,2]
[379216912,1755192632550,-500.0,0.00016708,2]
[379216914,1755192632561,-197.05939164,0.00016708,2]
[379216916,1755192632573,-515.7937941,0.00016708,2]
[379216918,1755192632583,-399.64836758,0.00016708,2]
[379216920,1755192632595,-500.0,0.00016708,2]
[379216921,1755192632606,-500.0,0.00016708,2]
[379216922,1755192632616,-500.0,0.00016708,2]
[379216923,1755192632626,-500.0,0.00016708,2]
[379216924,1755192632635,-167.0674,0.00016708,2]
[379216925,1755192632646,-500.0,0.00016708,2]
[379216926,1755192632657,-500.0,0.00016708,2]
[379216927,1755192632667,-500.0,0.00016708,2]
[379216928,1755192632678,-500.0,0.00016708,2]
[379216929,1755192632689,-500.0,0.00016708,2]
[379216930,1755192632700,-500.0,0.00016708,2]
[379216931,1755192632710,-500.0,0.00016708,2]
[379216932,1755192632721,-500.0,0.00016708,2]
[379216933,1755192632732,-500.0,0.00016708,2]
[379216934,1755192632743,-500.0,0.00016708,2]
[379216935,1755192632755,-300.0,0.00016708,2]
[379216936,1755192632766,-500.0,0.00016708,2]
[379216937,1755192632777,-300.0,0.00016708,2]
[379216938,1755192632788,-250.0,0.00016708,2]
[379216939,1755192632799,-500.0,0.00016708,2]
[379216940,1755192632811,-250.0,0.00016708,2]
[379216941,1755192632822,-252.55197939,0.00016708,2]
[379216942,1755192632833,-1873.54795546,0.00016709,2]
[379216943,1755192632842,-460.0,0.00016709,2]
[379216944,1755192632852,-460.0,0.00016709,2]
[379216945,1755192632862,-460.0,0.00016709,2]
[379216946,1755192632872,-460.0,0.00016709,2]
[379216947,1755192632882,-460.0,0.00016709,2]
[379216948,1755192632892,-455.00000021,0.00016709,2]
[379216949,1755192632902,-460.0,0.00016709,2]
[379216950,1755192632912,-460.0,0.00016709,2]
[379216951,1755192632924,-363.50603091,0.00016709,2]
[379216952,1755192632934,-337.63814961,0.00016709,2]
[379216953,1755192632946,-465.80773449,0.00016709,2]
[379216954,1755192632956,-460.0,0.00016709,2]
[379216955,1755192632969,-460.0,0.00016709,2]
[379216956,1755192632980,-460.0,0.00016709,2]
[379216957,1755192632989,-460.0,0.00016709,2]
[379216958,1755192632999,-460.0,0.00016709,2]
[379216959,1755192633009,-460.0,0.00016709,2]
[379216960,1755192633020,-460.0,0.00016709,2]
[379216961,1755192633030,-460.0,0.00016709,2]
[379216962,1755192633040,-460.0,0.00016709,2]
[379216964,1755192633052,-460.0,0.00016709,2]
[379216965,1755192633063,-460.0,0.00016709,2]
[379216966,1755192633074,-460.0,0.00016709,2]
[379216967,1755192633083,-460.0,0.00016709,2]
[379216969,1755192633094,-460.0,0.00016709,2]
[379216970,1755192633104,-460.0,0.00016709,2]
[379216972,1755192633115,-460.0,0.00016709,2]
[379216974,1755192633126,-460.0,0.00016709,2]
[379216976,1755192633136,-460.0,0.00016709,2]
[379216978,1755192633147,-460.0,0.00016709,2]
[379216980,1755192633157,-469.88,0.00016709,2]
[379216983,1755192633169,-460.0,0.00016709,2]
[379216985,1755192633180,-460.0,0.00016709,2]
[379216987,1755192633194,-460.0,0.00016709,2]
[379216989,1755192633204,-460.0,0.00016709,2]
[379216991,1755192633215,-353.03593812,0.00016709,2]
[379216993,1755192633227,-198.09871778,0.00016709,2]
[379216995,1755192633239,-460.0,0.00016709,2]
[379216997,1755192633249,-460.0,0.00016709,2]
[379217000,1755192633260,-460.0,0.00016709,2]
[379217002,1755192633271,-460.0,0.00016709,2]
[379217004,1755192633283,-460.0,0.00016709,2]
[379217006,1755192633293,-460.0,0.00016709,2]
[379217008,1755192633304,-522.64,0.00016709,2]
[379217010,1755192633314,-460.0,0.00016709,2]
[379217012,1755192633324,-589.17,0.00016709,2]
[379217014,1755192633335,-460.0,0.00016709,2]
[379217016,1755192633346,-460.0,0.00016709,2]
[379217018,1755192633357,-460.0,0.00016709,2]
[379217021,1755192633367,-460.0,0.00016709,2]
[379217023,1755192633378,-460.38725175,0.00016709,2]
[379217025,1755192633388,-460.0,0.00016709,2]
[379217027,1755192633398,-460.0,0.00016709,2]
[379217029,1755192633408,-460.0,0.00016709,2]
[379217031,1755192633419,-460.0,0.00016709,2]
[379217033,1755192633429,-497.89,0.00016709,2]
[379217035,1755192633439,-460.0,0.00016709,2]
[379217037,1755192633449,-460.0,0.00016709,2]
[379217039,1755192633461,-460.0,0.00016709,2]
[379217041,1755192633472,-464.71121682,0.00016709,2]
[379217043,1755192633482,-460.0,0.00016709,2]
[379217044,1755192633493,-460.0,0.00016709,2]
[379217045,1755192633503,-460.0,0.00016709,2]
[379217046,1755192633513,-460.0,0.00016709,2]
[379217048,1755192633524,-460.0,0.00016709,2]
[379217050,1755192633534,-460.0,0.00016709,2]
[379217051,1755192633544,-460.0,0.00016709,2]
[379217053,1755192633554,-531.19,0.00016709,2]
[379217054,1755192633565,-460.0,0.00016709,2]
[379217056,1755192633575,-460.0,0.00016709,2]
[379217058,1755192633586,-531.71,0.00016709,2]
[379217060,1755192633597,-460.0,0.00016709,2]
[379217061,1755192633607,-578.44,0.00016709,2]
[379217062,1755192633618,-460.0,0.00016709,2]
[379217063,1755192633628,-461.06292599,0.00016709,2]
[379217064,1755192633638,-460.0,0.00016709,2]
[379217065,1755192633649,-460.0,0.00016709,2]
[379217066,1755192633660,-460.0,0.00016709,2]
[379217067,1755192633671,-701.55,0.00016709,2]
[379217068,1755192633681,-460.0,0.00016709,2]
[379217069,1755192633692,-460.0,0.00016709,2]
[379217070,1755192633703,-462.2223395,0.00016709,2]
[379217071,1755192633713,-460.0,0.00016709,2]
[379217072,1755192633724,-460.0,0.00016709,2]
[379217073,1755192633734,-460.0,0.00016709,2]
[379217074,1755192633744,-461.5908199,0.00016709,2]
[379217075,1755192633755,-460.0,0.00016709,2]
[379217076,1755192633765,-460.0,0.00016709,2]
[379217077,1755192633777,-460.0,0.00016709,2]
[379217078,1755192633787,-225.29380683,0.00016709,2]
[379217102,1755192637785,-280.03619317,0.00016709,2]
[379217103,1755192637794,-460.0,0.00016709,2]
[379217104,1755192637804,-460.0,0.00016709,2]
[379217105,1755192637813,-460.0,0.00016709,2]
[379217106,1755192637822,-460.0,0.00016709,2]
[379217107,1755192637831,-460.0,0.00016709,2]
[379217108,1755192637840,-288.55939699,0.00016709,2]
[379217109,1755192637850,-552.87,0.00016709,2]
[379217110,1755192637859,-460.0,0.00016709,2]
[379217111,1755192637868,-461.99479052,0.00016709,2]
[379217112,1755192637877,-460.0,0.00016709,2]
[379217113,1755192637886,-460.0,0.00016709,2]
[379217114,1755192637896,-161.98780148,0.00016709,2]
[379217115,1755192637905,-460.0,0.00016709,2]
[379217116,1755192637914,-460.0,0.00016709,2]
[379217118,1755192637923,-460.0,0.00016709,2]
[379217120,1755192637932,-460.0,0.00016709,2]
[379217122,1755192637942,-487.2,0.00016709,2]
[379217124,1755192637951,-460.0,0.00016709,2]
[379217126,1755192637960,-467.50718232,0.00016709,2]
[379217128,1755192637969,-801.04,0.00016709,2]
[379217130,1755192637978,-460.0,0.00016709,2]
[379217133,1755192637987,-277.78336998,0.00016709,2]
[379217135,1755192637996,-460.0,0.00016709,2]
[379217137,1755192638005,-466.2,0.00016709,2]
[379217139,1755192638014,-460.0,0.00016709,2]
[379217141,1755192638023,-460.0,0.00016709,2]
[379217143,1755192638032,-460.0,0.00016709,2]
[379217146,1755192638041,-460.0,0.00016709,2]
[379217149,1755192638051,-460.0,0.00016709,2]
[379217152,1755192638061,-460.0,0.00016709,2]
[379217155,1755192638070,-460.0,0.00016709,2]
[379217157,1755192638079,-23.39689243,0.00016709,2]
[379217171,1755192638199,-576.73310757,0.00016709,2]
[379217173,1755192638208,-592.34,0.00016709,2]
[379217175,1755192638218,-460.9486442,0.00016709,2]
[379217177,1755192638227,-36.72448813,0.00016709,2]
[379217179,1755192638238,-423.27551187,0.00016709,2]
[379217181,1755192638247,-460.0,0.00016709,2]
[379217183,1755192638257,-460.0,0.00016709,2]
[379217185,1755192638268,-460.72166703,0.00016709,2]
[379217187,1755192638277,-460.0,0.00016709,2]
[379217189,1755192638286,-460.0,0.00016709,2]
[379217191,1755192638295,-460.0,0.00016709,2]
[379217193,1755192638304,-460.0,0.00016709,2]
[379217195,1755192638312,-319.80282111,0.00016709,2]
[379217358,1755192639792,-460.0,0.00016706,2]
[379217360,1755192639801,-140.19717889,0.00016709,2]
[379217362,1755192639810,-500.0,0.00016709,2]
[379217364,1755192639820,-500.0,0.00016709,2]
[379217366,1755192639829,-460.0,0.00016709,2]
[379217368,1755192639838,-500.0,0.00016709,2]
[379217370,1755192639848,-460.0,0.00016709,2]
[379217372,1755192639857,-460.0,0.00016709,2]
[379217374,1755192639867,-824.34224132,0.00016709,2]
[379217376,1755192639878,-110.30775868,0.00016709,2]
[379217378,1755192639888,-460.0,0.00016709,2]
[379217380,1755192639897,-186.25997437,0.00016709,2]
[379217453,1755192643008,-460.0,0.00016708,2]
[379217455,1755192643018,-273.74002563,0.00016709,2]
[379217457,1755192643027,-460.0,0.00016709,2]
[379217458,1755192643036,-460.0,0.00016709,2]
[379217460,1755192643046,-460.0,0.00016709,2]
[379217462,1755192643055,-460.0,0.00016709,2]
[379217463,1755192643065,-1645.66,0.00016709,2]
[379217465,1755192643074,-460.0,0.00016709,2]
[379217466,1755192643083,-463.68501559,0.00016709,2]
[379217467,1755192643092,-209.64708526,0.00016709,2]
[379217468,1755192643102,-344.82554684,0.00016709,2]
[379217469,1755192643110,-460.0,0.00016709,2]
[379217470,1755192643124,-500.0,0.00016709,2]
[379217471,1755192643134,-460.53692922,0.0001671,2]
[379217472,1755192643143,-461.489885,0.0001671,2]
[379217473,1755192643152,-460.0,0.0001671,2]
[379217474,1755192643162,-460.0,0.0001671,2]
[379217475,1755192643171,-461.02632671,0.0001671,2]
[379217476,1755192643180,-460.0,0.0001671,2]
[379217477,1755192643195,-460.0,0.0001671,2]
[379217478,1755192643204,-462.24951918,0.0001671,2]
[379217479,1755192643213,-460.0,0.0001671,2]
[379217480,1755192643223,-460.0,0.0001671,2]
[379217481,1755192643234,-460.0,0.0001671,2]
[379217482,1755192643244,-314.13459046,0.0001671,2]
[379217483,1755192643253,-460.0,0.0001671,2]
[379217484,1755192643264,-254.53507611,0.0001671,2]
[379217490,1755192644358,5000.0,0.000176,6]
[379217501,1755192645799,-200.0,0.00016705,2]
[379217502,1755192645809,-299.67326574,0.00016705,2]
[379217503,1755192645819,-250.0,0.00016705,2]
[379217504,1755192645828,-200.0,0.00016705,2]
[379217505,1755192645837,-250.0,0.00016705,2]
[379217506,1755192645846,-460.0,0.00016708,2]
[379217507,1755192645855,-767.66,0.00016709,2]
[379217508,1755192645864,-180.78682748,0.0001671,2]
[379217509,1755192645876,-24.67809641,0.0001671,2]
[379217510,1755192645886,-460.0,0.0001671,2]
[379217511,1755192645895,-460.0,0.0001671,2]
[379217512,1755192645905,-462.29136156,0.0001671,2]
[379217513,1755192645915,-460.0,0.0001671,2]
[379217514,1755192645925,-460.0,0.0001671,2]
[379217515,1755192645935,-460.0,0.0001671,2]
[379217516,1755192645945,-461.68726973,0.0001671,2]
[379217517,1755192645955,-460.0,0.0001671,2]
[379217518,1755192645964,-460.0,0.0001671,2]
[379217520,1755192645974,-461.17347108,0.0001671,2]
[379217521,1755192645984,-177.66980111,0.0001671,2]
[379217522,1755192660217,5000.0,0.000176,6]
[379217523,1755192676732,5000.0,0.00016438,2]
[379217524,1755192684004,495.31,0.00021464,30]
[379217525,1755192692029,1328.7644471,0.00016438,2]
[379217527,1755192747990,541.531306,0.00013699,2]
[379217528,1755192767245,492.61,0.00020984,30]
[379217529,1755192767688,985.23,0.00022892,30]
[379217533,1755192837258,528.19044044,0.0003,120]
[379217534,1755192851505,484.55,0.0002127,30]
[379217535,1755192932288,481.91,0.00021236,30]
[379217542,1755193021500,479.28,0.00021318,30]
[379217543,1755193102840,476.67,0.000213,30]
[379217544,1755193188558,474.07,0.00021344,30]
[379217550,1755193275871,471.48,0.00021278,30]
[379217551,1755193293273,189.286418,0.00027397,120]
[379217553,1755193358080,468.91,0.00021268,30]
[379217558,1755193448035,466.35,0.00021109,30]
[379217559,1755193524769,6687.68,0.00023,30]
[379217560,1755193530862,463.81,0.00021008,30]
[379217561,1755193536916,927.61,0.00022918,30]
[379217586,1755193718578,456.22,0.0001889,30]
[379217587,1755193719595,912.43,0.00020608,30]
[379217588,1755193720054,1368.65,0.00022325,30]
[379217610,1755193801268,441.29,0.00018904,30]
[379217611,1755193801675,882.57,0.00020622,30]
[379217623,1755193802125,1323.86,0.00022341,30]
[379217700,1755193832261,-278.24989665,0.00016598,2]
[379217702,1755193832273,-2533.0761568,0.00016609,2]
[379217704,1755193832283,-1854.63380226,0.00016696,2]
[379217706,1755193832292,-300.0,0.00016698,2]
[379217708,1755193832301,-304.73479131,0.00016698,2]
[379217818,1755193837919,-817.26520869,0.00016698,2]
[379217820,1755193837929,-47.84752634,0.00016699,2]
[379217825,1755193837973,-1474.14023591,0.00016699,2]
[379217828,1755193837985,-11261.66351418,0.00016699,2]
[379217830,1755193837997,-5058.87117157,0.00016699,2]
[379217832,1755193838006,-656.77,0.00016699,3]
[379217834,1755193838015,-547.31,0.00016699,3]
[379217836,1755193838025,-273.66,0.00016699,3]
[379217838,1755193838034,-384.55634431,0.00016699,3]
[379217840,1755193838046,-436.44365569,0.00016699,3]
[379217842,1755193838055,-460.0,0.00016703,2]
[379217844,1755193838064,-292.71022631,0.00016703,2]
[379217846,1755193838072,-460.0,0.00016703,2]
[379217848,1755193838082,-460.0,0.00016703,2]
[379217850,1755193838091,-326.99640413,0.00016703,2]
[379217852,1755193838102,-1020.64359587,0.00016703,2]
[379217854,1755193838111,-460.0,0.00016703,2]
[379217856,1755193838120,-225.21242999,0.00016703,2]
[379217858,1755193838129,-539.61109572,0.00016703,2]
[379217860,1755193838139,-56.72288427,0.00016703,2]
[379218188,1755193843135,-1232.26,0.00016702,2]
[379218190,1755193843145,-298.80711573,0.00016703,2]
[379218192,1755193843154,-859.13,0.00016703,2]
[379218194,1755193843164,-209.09,0.00016703,2]
[379218196,1755193843174,-460.0,0.00016703,2]
[379218198,1755193843183,-460.0,0.00016703,2]
[379218200,1755193843192,-1142.38,0.00016703,2]
[379218202,1755193843201,-490.67,0.00016703,2]
[379218204,1755193843210,-460.0,0.00016703,2]
[379218206,1755193843219,-573.65,0.00016703,2]
[379218207,1755193843229,-460.0,0.00016703,2]
[379218209,1755193843238,-460.0,0.00016703,2]
[379218212,1755193843247,-460.0,0.00016703,2]
[379218214,1755193843256,-460.0,0.00016703,2]
[379218216,1755193843266,-1225.14,0.00016703,2]
[379218218,1755193843275,-460.0,0.00016703,2]
[379218220,1755193843284,-460.0,0.00016703,2]
[379218222,1755193843293,-460.0,0.00016703,2]
[379218225,1755193843302,-509.06,0.00016703,2]
[379218227,1755193843311,-181.35048335,0.00016703,2]
[379218229,1755193843321,-460.0,0.00016703,2]
[379218231,1755193843330,-460.0,0.00016703,2]
[379218233,1755193843339,-460.0,0.00016703,2]
[379218235,1755193843348,-672.32,0.00016703,2]
[379218237,1755193843358,-460.0,0.00016703,2]
[379218239,1755193843367,-466.33812446,0.00016703,2]
[379218241,1755193843377,-460.0,0.00016703,2]
[379218244,1755193843388,-460.0,0.00016703,2]
[379218246,1755193843397,-33970.53670418,0.00016703,2]
[379218248,1755193843409,-1814.73052509,0.00016703,2]
[379218472,1755193846007,-1538.11080666,0.00016703,2]
[379218474,1755193846017,-606.71,0.00016704,2]
[379218476,1755193846026,-460.0,0.00016704,2]
[379218478,1755193846037,-533.85757812,0.00016704,2]
[379218480,1755193846047,-460.0,0.00016704,2]
[379218482,1755193846056,-460.0,0.00016704,2]
[379218484,1755193846065,-460.0,0.00016704,2]
[379218486,1755193846075,-460.0,0.00016704,2]
[379218488,1755193846084,-328.61,0.00016704,2]
[379218490,1755193846093,-460.0,0.00016704,2]
[379218492,1755193846103,-271.02,0.00016704,2]
[379218494,1755193846113,-462.79052649,0.00016704,2]
[379218496,1755193846123,-460.0,0.00016704,2]
[379218498,1755193846132,-460.0,0.00016704,2]
[379218500,1755193846142,-300.15,0.00016704,2]
[379218502,1755193846151,-162.8,0.00016704,2]
[379218504,1755193846161,-230.63,0.00016704,2]
[379218507,1755193846170,-460.0,0.00016704,2]
[379218510,1755193846179,-243.37,0.00016704,2]
[379218513,1755193846189,-460.0,0.00016704,2]
[379218516,1755193846198,-460.0,0.00016704,2]
[379218519,1755193846207,-460.0,0.00016704,2]
[379218521,1755193846216,-460.0,0.00016704,2]
[379218523,1755193846225,-460.0,0.00016704,2]
[379218525,1755193846235,-460.0,0.00016704,2]
[379218527,1755193846244,-460.0,0.00016704,2]
[379218529,1755193846253,-460.0,0.00016704,2]
[379218531,1755193846263,-460.0,0.00016704,2]
[379218533,1755193846272,-460.0,0.00016704,2]
[379218535,1755193846283,-500.0,0.00016704,2]
[379218537,1755193846292,-500.0,0.00016704,2]
[379218539,1755193846301,-460.0,0.00016704,2]
[379218541,1755193846311,-460.0,0.00016704,2]
[379218543,1755193846320,-460.0,0.00016704,2]
[379218545,1755193846330,-185.09,0.00016704,2]
[379218547,1755193846339,-151.0,0.00016704,2]
[379218549,1755193846348,-466.9,0.00016704,2]
[379218551,1755193846358,-246.62602086,0.00016704,2]
[379218553,1755193846367,-216.28,0.00016704,2]
[379218555,1755193846376,-460.0,0.00016704,2]
[379218557,1755193846386,-198.0,0.00016705,2]
[379218559,1755193846395,-1029.0,0.00016705,2]
[379218561,1755193846404,-198.0,0.00016705,2]
[379218563,1755193846413,-151.0,0.00016705,2]
[379218565,1755193846422,-151.0,0.00016705,2]
[379218567,1755193846431,-151.0,0.00016705,2]
[379218569,1755193846440,-151.0,0.00016705,2]
[379218571,1755193846450,-151.0,0.00016705,2]
[379218573,1755193846459,-151.0,0.00016705,2]
[379218575,1755193846469,-151.0,0.00016705,2]
[379218577,1755193846478,-160.00000001,0.00016705,2]
[379218579,1755193846487,-460.0,0.00016705,2]
[379218581,1755193846496,-460.0,0.00016705,2]
[379218583,1755193846506,-460.0,0.00016705,2]
[379218585,1755193846522,-1015.48,0.00016705,2]
[379218587,1755193846533,-200.0,0.00016705,2]
[379218589,1755193846542,-643.21282001,0.00016705,2]
[379218591,1755193846551,-537.84378813,0.00016705,2]
[379218593,1755193846561,-462.49397537,0.00016706,2]
[379218594,1755193846570,-460.0,0.00016706,2]
[379218596,1755193846579,-460.0,0.00016706,2]
[379218598,1755193846589,-460.0,0.00016706,2]
[379218600,1755193846598,-460.0,0.00016706,2]
[379218602,1755193846607,-460.0,0.00016706,2]
[379218604,1755193846616,-460.0,0.00016706,2]
[379218606,1755193846625,-460.0,0.00016706,2]
[379218608,1755193846635,-460.0,0.00016706,2]
[379218610,1755193846644,-460.0,0.00016706,2]
[379218612,1755193846653,-210.34,0.00016706,2]
[379218614,1755193846662,-460.0,0.00016706,2]
[379218616,1755193846672,-460.0,0.00016706,2]
[379218618,1755193846681,-460.0,0.00016706,2]
[379218620,1755193846691,-460.99574746,0.00016706,2]
[379218622,1755193846700,-460.0,0.00016706,2]
[379218624,1755193846710,-460.0,0.00016706,2]
[379218626,1755193846719,-460.0,0.00016706,2]
[379218628,1755193846729,-460.0,0.00016706,2]
[379218630,1755193846738,-460.0,0.00016706,2]
[379218632,1755193846747,-460.0,0.00016706,2]
[379218634,1755193846756,-460.0,0.00016706,2]
[379218636,1755193846766,-460.0,0.00016706,2]
[379218638,1755193846775,-460.0,0.00016706,2]
[379218640,1755193846790,-462.23358971,0.00016706,2]
[379218642,1755193846799,-151.0,0.00016706,2]
[379218644,1755193846808,-461.72326758,0.00016706,2]
[379218646,1755193846817,-151.0,0.00016706,2]
[379218648,1755193846827,-460.7169586,0.00016706,2]
[379218650,1755193846835,-422.93447865,0.00016706,2]
[379218652,1755193846845,-604.84,0.00016706,2]
[379218654,1755193846854,-460.0,0.00016706,2]
[379218656,1755193846863,-460.0,0.00016706,2]
[379218658,1755193846874,-266.15431464,0.00016706,2]
[379218660,1755193846883,-460.0,0.00016706,2]
[379218662,1755193846892,-168.6200183,0.00016706,2]
[379218664,1755193846902,-460.0,0.00016706,2]
[379218666,1755193846911,-462.00738125,0.00016706,2]
[379218668,1755193846920,-460.0,0.00016706,2]
[379218670,1755193846929,-460.0,0.00016706,2]
[379218672,1755193846939,-460.0,0.00016706,2]
[379218673,1755193846948,-461.86932462,0.00016706,2]
[379218676,1755193846958,-460.0,0.00016706,2]
[379218677,1755193846967,-460.0,0.00016706,2]
[379218679,1755193846976,-251.56,0.00016706,2]
[379218681,1755193846986,-283.952664,0.00016706,2]
[379218683,1755193846995,-460.0,0.00016706,2]
[379218685,1755193847004,-460.0,0.00016706,2]
[379218687,1755193847013,-460.0,0.00016706,2]
[379218689,1755193847022,-460.0,0.00016706,2]
[379218691,1755193847032,-460.0,0.00016706,2]
[379218693,1755193847041,-460.0,0.00016706,2]
[379218695,1755193847051,-460.0,0.00016706,2]
[379218697,1755193847061,-500.0,0.00016706,2]
[379218699,1755193847070,-500.0,0.00016706,2]
[379218701,1755193847079,-500.0,0.00016706,2]
[379218703,1755193847088,-460.0,0.00016706,2]
[379218705,1755193847099,-513.91,0.00016706,2]
[379218707,1755193847108,-471.61,0.00016706,2]
[379218709,1755193847118,-460.0,0.00016706,2]
[379218711,1755193847127,-460.0,0.00016706,2]
[379218713,1755193847136,-460.0,0.00016707,2]
[379218715,1755193847145,-502.78690373,0.00016707,2]
[379218717,1755193847154,-826.41,0.00016707,2]
[379218719,1755193847164,-1577.09,0.00016707,2]
[379218721,1755193847173,-460.0,0.00016707,2]
[379218723,1755193847182,-735.68,0.00016707,2]
[379218725,1755193847192,-460.0,0.00016707,2]
[379218727,1755193847201,-460.0,0.00016707,2]
[379218729,1755193847211,-895.71,0.00016707,2]
[379218731,1755193847222,-3226.09,0.00016707,2]
[379218733,1755193847231,-500.0,0.00016707,2]
[379218735,1755193847240,-500.0,0.00016707,2]
[379218737,1755193847249,-579.08,0.00016707,2]
[379218739,1755193847258,-500.0,0.00016707,2]
[379218740,1755193847267,-460.0,0.00016707,2]
[379218742,1755193847276,-460.0,0.00016707,2]
[379218745,1755193847288,-460.0,0.00016707,2]
[379218746,1755193847297,-1664.61,0.00016707,2]
[379218748,1755193847306,-460.0,0.00016708,2]
[379218751,1755193847316,-500.0,0.00016708,2]
[379218753,1755193847326,-500.0,0.00016708,2]
[379218755,1755193847336,-500.0,0.00016708,2]
[379218757,1755193847345,-500.0,0.00016708,2]
[379218759,1755193847354,-500.0,0.00016708,2]
[379218760,1755193847363,-460.0,0.00016709,2]
[379218762,1755193847373,-460.0,0.00016709,2]
[379218764,1755193847382,-460.0,0.00016709,2]
[379218766,1755193847392,-151.0,0.00016709,2]
[379218769,1755193847402,-460.0,0.00016709,2]
[379218770,1755193847412,-461.38762913,0.00016709,2]
[379218772,1755193847421,-460.0,0.00016709,2]
[379218774,1755193847431,-500.0,0.00016709,2]
[379218776,1755193847440,-460.0,0.00016709,2]
[379218778,1755193847449,-357.81597603,0.00016709,2]
[379218782,1755193847472,-460.0,0.00016703,2]
[379218784,1755193847482,-102.18402397,0.00016709,2]
[379218786,1755193847491,-460.0,0.00016709,2]
[379218788,1755193847499,-460.0,0.00016709,2]
[379218789,1755193847509,-468.19453096,0.00016709,2]
[379218790,1755193847521,-460.0,0.00016709,2]
[379218791,1755193847531,-460.0,0.00016709,2]
[379218792,1755193847540,-460.0,0.00016709,2]
[379218793,1755193847548,-460.0,0.00016709,2]
[379218794,1755193847560,-460.0,0.00016709,2]
[379218795,1755193847569,-461.04858743,0.00016709,2]
[379218796,1755193847579,-460.0,0.00016709,2]
[379218797,1755193847591,-460.0,0.00016709,2]
[379218798,1755193847600,-151.0,0.00016709,2]
[379218799,1755193847609,-461.88001973,0.00016709,2]
[379218800,1755193847618,-574.21,0.00016709,2]
[379218801,1755193847627,-460.0,0.00016709,2]
[379218803,1755193847636,-508.59770756,0.00016709,2]
[379218805,1755193847645,-460.0,0.00016709,2]
[379218807,1755193847654,-460.0,0.00016709,2]
[379218809,1755193847663,-460.0,0.00016709,2]
[379218811,1755193847672,-151.0,0.00016709,2]
[379218813,1755193847681,-152.283643,0.00016709,2]
[379218815,1755193847690,-460.0,0.00016709,2]
[379218817,1755193847699,-460.0,0.00016709,2]
[379218819,1755193847709,-460.0,0.00016709,2]
[379218821,1755193847718,-460.0,0.00016709,2]